{"text_format":"1","workbook":"xlsx","n_sheets":5,"sheets":["Resumo","Critérios e resultados em R$","Modelo planilha cálculo","Municípios","Base de ativos"],"not_rendered":{"charts":0,"images":2,"macros":1,"external_links":11,"defined_names":161,"comments":2,"pivot_tables":0},"unopened":[],"bounds":{"document_bytes":16777216,"sheet_cells":100000,"rows_first":2000,"rows_last":500,"rows_between":2000,"halvings":0,"cell_chars":16384,"cell_head_chars":4096},"cells_cut":0,"cells_raw":0,"read":"whole","date_system":"1900"}

{"sheet":"Resumo","index":0,"n_rows":17,"n_cols":19,"rows_kept":17,"cut":false,"hidden":false,"merged":[[9,14,9,15],[13,14,15,15],[10,1,10,5],[10,7,10,11],[13,1,13,5],[13,7,13,11],[11,1,12,5],[11,7,12,11]]}
["ARSAE-MG"]
["2ª Revisão Tarifária Periódica da Copasa MG - Audiência Pública nº 32/2020"]
["Esclarecimentos adicionais sobre o método de cálculo das proporções das tarifas de esgoto em relação às tarifas de água, no contexto das propostas apresentadas na Seção 5 da Nota Técnica CRE 13/2020 - Estrutura Tarifária,"]
["e sobre o cálculo da participação de cada mercado no custo total, para o cálculo dos ganhos de produtividade, apresentado na Seção 4 da NT CRE 11/2020"]
[]
[]
[null,"Método e critérios de cálculo das proporções das tarifas de esgoto em relação às tarifas de água",null,null,null,null,null,null,null,null,null,null,null,null,"Cálculo da participação de cada mercado no custo da Copasa (Tabela 3 da NT CRE 11/2020)"]
[]
[null,"Conforme discutido na Nota Técnica CRE 13/2020, a Arsae-MG calculou valores preliminares para dois cenários:"]
[null,null,null,null,null,null,null,null,null,null,null,null,null,null,"Custo/m³ com base nos dados de 2019",null,null,null,"Custo médio relativo"]
[null,"Cenário ideal",null,null,null,null,null,"Cenário alternativo",null,null,null,null,null,null,"Custo médio água",{"$f":"ROUND('Critérios e resultados em R$'!O31,2)","v":4.8600000000000003},null,"Mercado água",{"$f":"P11/SUM($P$11:$P$13)","v":0.474609375}]
[null,"Tarifas de água, EDC e EDT totalmente aderentes aos respectivos custos",null,null,null,null,null,"Tarifa de água subsidia o tratamento de esgoto; tarifa de esgoto cobre o custo da coleta",null,null,null,null,null,null,"Custo médio coleta",{"$f":"ROUND('Critérios e resultados em R$'!O32,2)","v":3.31},null,"Mercado EDC",{"$f":"P12/SUM($P$11:$P$13)","v":0.3232421875}]
[null,null,null,null,null,null,null,null,null,null,null,null,null,null,"Custo médio tratamento",{"$f":"ROUND('Critérios e resultados em R$'!O33,2)","v":2.0699999999999998},null,"Mercado EDT",{"$f":"P13/SUM($P$11:$P$13)","v":0.20214843749999997}]
[null,"EDC/Água = 68% e EDT/Água = 111%",null,null,null,null,null,"EDC/Água = 48%",null,null,null,null,null,null," * apenas custos que devem ser cobertos pela receita tarifária, ou seja, calculados com critérios regulatórios, apesar das simplificações."]
[]
[null,"Os percentuais acima advêm do arredondamento dos resultados descritos na próxima aba, por simplificação."]
[null,"EDC/água:",{"$f":"'Critérios e resultados em R$'!P32","v":0.68068176333037667},"EDT/água:",{"$f":"'Critérios e resultados em R$'!P34","v":1.1076111197545226},null,null,"EDC/água:",{"$f":"'Critérios e resultados em R$'!T32","v":0.47702555159153104}]

{"sheet":"Critérios e resultados em R$","index":1,"n_rows":34,"n_cols":20,"rows_kept":34,"cut":false,"hidden":false,"merged":[[25,1,30,4],[4,1,5,3],[23,13,24,19],[26,13,27,15],[26,17,28,19],[4,6,5,11],[23,1,24,4],[9,1,11,1],[13,1,16,1],[21,4,22,4],[23,8,33,9]]}
["ARSAE-MG"]
["Esclarecimentos e informações adicionais sobre o método de cálculo das proporções das tarifas de esgoto em relação às tarifas de água, no contexto das propostas apresentadas na Seção 5 da Nota Técnica CRE 13/2020 - Estrutura Tarifária"]
[]
[]
[null,"Tabela 15 – Critérios de cálculo da tarifa necessária para cobrir os custos de cada serviço (abastecimento de água, coleta de esgoto e tratamento de esgoto) separadamente",null,null,null,null,"Somatório dos valores calculados para cada município, considerando os municípios listados na aba \"Municípios\""]
[]
[]
[null,"Grupo","Itens","Fonte ou forma de cálculo","Observação",null,"Água","check","Coleta de esgoto","check","Tratamento de esgoto","check"]
[null,"Custos Operacionais (1)","Energia elétrica, pessoal, combustíveis, material de tratamento, manutenção, serviços de terceiros, dentre outros","Valores extraídos da contabilidade por município, considerando a classificação regulatória das contas contábeis definida pela Arsae-MG",null,null,1782581243.1800008,null,470688616.95000011,null,270299943.79000002]
[null,"Tributos e Outras Obrigações (2)","PIS/Pasep e Cofins","7,51% da receita tarifária (cálculo circular)","7,51% foi o percentual de PIS/Pasep e Cofins observado em 2019, líquido de parte da recuperação de crédito tributário. A outra parte da recuperação já está deduzida nos custos operacionais que geraram a recuperação, com a mudança iniciada pela Copasa no 3º tri/2019."," ",217208907.4788467,{"$f":"G10/G21","v":7.5099999999999931E-2},103192390.774121,{"$f":"I10/I21","v":7.51E-2},49638509.158662997,{"$f":"K10/K21","v":7.5099999994318933E-2}]
[null,null,"TFAS (taxa de fiscalização)","nº de economias * 1,2022 * Ufemg 2019","No cálculo do custo do serviço de água, apenas o nº de economias de água; nos cálculos dos custos dos serviços de coleta e de tratamento, economias de esgoto (EDC+EDT) proporcionalizadas em relação ao atendimento com coleta e tratamento, da seguinte forma: coleta: (econ. coleta)*(econ. coleta)/(econ. coleta + econ. tratamento); tratamento: (econ. coleta)*(econ. tratamento)/(econ. coleta + econ. tratamento)."," ",22205358.875266064,null,9349771.1474919301,null,6107516.4313901924]
[null,null,"Outros tributos e taxas","Valores extraídos da contabilidade por município",null,null,5028214.96,null,1545646.41,null,1065684.03]
[null,"Programas Especiais (3)","Proteção de Mananciais","0,5% da receita tarifária (cálculo circular)",null,null,14461312.082479823,{"$f":"G13/G21","v":5.000000000000001E-3},6870332.275241076,{"$f":"I13/I21","v":4.9999999999999984E-3},3304827.5072345543,{"$f":"K13/K21","v":4.9999999996217679E-3}]
[null,"Custos de Capital (4)","Amortização/depreciação","Depreciação projetada próximos 12 meses","Considerando vidas úteis conforme Tabela 4 da NT CRE 10/2020"," ",361573840.21147132,null,283963552.97632229,null,148645187.62919185]
[null,null,"Remuneração da base de ativos","WACC preliminar (7,44%) * base residual atualizada",null,null,371911517.65491474,null,340975367.82020867,null,139492763.0368534]
[null,null,"Remuneração da NCG","WACC * 1,15% * receita tarifária (cálculo circular)","O percentual de 1,15% se refere a quanto o estoque de materiais de custeio representou na receita tarifária de 2019."," ",2474619.7235539481,{"$f":"G16/7.44%/G21","v":1.1500000000000005E-2},1175651.2589392534,{"$f":"I16/7.44%/I21","v":1.15E-2},565522.08303797641,{"$f":"K16/7.44%/K21","v":1.1499999999130053E-2}]
[null,null,"Tributos sobre o lucro","34% * base de incidência de IR e CSLL (cálc. circular)","A base de incidência dos tributos sobre o lucro (IRPJ e CSLL) foi calculada a partir do montante de Custos de Capital, deduzindo-se: depreciação contábil; encargos de empréstimos; estimativa de distribuição de 29,41% do lucro em forma de JCP e estimativa de pagamento de PLR correspondente a 25% do dividendo mínimo obrigatório."," ",114294985.291775,null,130743493.71225835,null,51070705.936537154]
[null,"Rec. Irrecuperáveis (5)","Receitas Irrecuperáveis (inadimplência)","2,35% da receita tarifária (cálculo circular)","2,35% é o percentual de RI resultante de cálculo preliminar com a metodologia de curva de aging, conforme exposto na NT CRE 09/2020"," ",67968166.7876551,{"$f":"G18/G21","v":2.3499999999999983E-2},32290561.693633072,{"$f":"I18/I21","v":2.3500000000000004E-2},15532689.284002399,{"$f":"K18/K21","v":2.3499999998222297E-2}]
[null,"Receita Requerida (6)","Receita total requerida","(1) + (2) + (3) + (4) + (5)",null,null,{"$f":"SUM(G9:G18)","v":2959708166.2459641},null,{"$f":"SUM(I9:I18)","v":1380795385.0182157},null,{"$f":"SUM(K9:K18)","v":685723348.88691056}]
[null,"Outras Receitas (7)","Outras Receitas (receitas não tarifárias)","Valores extraídos da contabilidade por município","Apenas a parcela de outras receitas considerada na aferição do equilíbrio econômico-financeiro, conforme indicado na Nota Técnica CRE 09/2020, exceto em relação à receita de resíduos sólidos, que não foi contemplada aqui."," ",67445749.749999925,null,6728929.9699999969,null,24757847.389999997]
[null,"Receita Tarifária (8)","Receita tarifária necessária","(6) - (7)",null,null,{"$f":"G19-G20","v":2892262416.4959641},null,{"$f":"I19-I20","v":1374066455.0482156},null,{"$f":"K19-K20","v":660965501.49691057}]
[null,"Volume (m³)","Volume referente a cada serviço (m³)","Soma dos volumes faturados mensais referentes a cada serviço 2019 (Sicom)","O volume referente ao serviço de coleta de esgoto é ajustado (EDC = EDC + EDT), pois todo esgoto tratado também é coletado.",null,595466723.37000036,null,415607546.37000018,null,318744409.45000005]
[null,"Custo médio ou tarifa média","Custo/m³ ou tarifa necessária/m³","(8) / volume faturado de cada serviço",null,null,{"$f":"G21/G22","v":4.8571352570760231}," /m³",{"$f":"I21/I22","v":3.3061633915206499}," /m³",{"$f":"K21/K22","v":2.0736536293684962}," /m³"]
[null,"Não foram considerados os pagamentos de cobrança por uso dos recursos hídricos e os repasses a Fundos Municipais de Saneamento Básico, que, até o momento, se aplicam a apenas uma parcela dos municípios.",null,null,null,null,null,null,null,null,null,null,null,"Proporções das tarifas de esgoto em relação à água considerando o cenário ideal (1) e o cenário alternativo (2)"]
[]
[null,"Os dados extraídos da contabilidade por município (custos operacionais, outros tributos e taxas e outras receitas) foram separados entre os serviços de água, coleta e tratamento de esgoto com base nas indicações da própria Copasa na coluna denominada “Negócio”. A Copasa classifica os custos e receitas em quatro negócios, indicados pelas letras A, E, T e L. Considerou-se A = abastecimento de água; E = coleta de esgoto; T = tratamento de esgoto e L = resíduos sólidos (expurgados).\nAs classificações foram conferidas com a coluna “Atividade”.  A Copasa classifica os custos e receitas em diversas atividades dentro de cada negócio, algumas diretamente associáveis a cada serviço (captação de água, distribuição de água, operação água, produção de água, tratamento de água, coleta de esgoto, tratamento de esgoto e aterro sanitário) e outras não diretamente associáveis (comercial local, despesa manutenção, despesa pré-operacional, obras em andamento). Em alguns pouquíssimos casos em que foi observada divergência entre as duas colunas, considerou-se a classificação mais condizente com o nome da rubrica. "]
[null,null,null,null,null,null,null,null,null,null,null,null,null,"1 - Tarifas de água, EDC e EDT totalmente aderentes aos respectivos custos",null,null,null,"2 - Tarifa de água subsidia o tratamento de esgoto; tarifa de esgoto cobre o custo da coleta"]
[]
[]
[null,null,null,null,null,null,null,null,null,null,null,null,null,null,"Custo/m³","(%) Água",null,null,"Custo/m³","(%) Água"]
[null,null,null,null,null,null,null,null,null,null,null,null,null,"Água",{"$f":"G23","v":4.8571352570760231},null,null,"Água",{"$f":"O31+O33","v":6.9307888864445193}]
[null,null,null,null,null,null,null,null,null,null,null,null,null,"Coleta esgoto",{"$f":"I23","v":3.3061633915206499},{"$f":"O32/O31","v":0.68068176333037667},null,"Esgoto",{"$f":"O32","v":3.3061633915206499},{"$f":"S32/S31","v":0.47702555159153104}]
[null,null,null,null,null,null,null,null,null,null,null,null,null,"Tratamento esgoto",{"$f":"K23","v":2.0736536293684962},{"$f":"O33/O31","v":0.42692935642414614}]
[null,null,null,null,null,null,null,null,null,null,null,null,null,"Esgoto Total",{"$f":"O32+O33","v":5.3798170208891456},{"$f":"O34/O31","v":1.1076111197545226}]

{"sheet":"Modelo planilha cálculo","index":2,"n_rows":68,"n_cols":11,"rows_kept":68,"cut":false,"hidden":false,"merged":[[49,10,50,16],[30,4,34,4],[2,0,3,15],[5,3,5,6],[6,4,6,5],[7,4,24,4],[25,4,28,4]]}
["ARSAE-MG"]
["Esclarecimentos e informações adicionais sobre o método de cálculo das proporções das tarifas de esgoto em relação às tarifas de água, no contexto das propostas apresentadas na Seção 5 da Nota Técnica CRE 13/2020 - Estrutura Tarifária"]
["Modelo de planilha de cálculo, simplificado. O cálculo feito pela Arsae-MG para chegar aos resultados apresentados na NT CRE 13/2020 e na aba anterior desta planilha foi por município e, em seguida, os resultados de receita tarifária necessária encontrados para cada município foram somados conforme equações apresentadas na aba \"resumo\" para cálculo das tarifas médias por serviço. As informações por município não são apresentadas aqui devido ao seu caráter sigiloso."]
[]
[]
[null,null,null,"Classificação regulatória",null,null,null,"ÁGUA","COLETA DE ESGOTO","TRATAMENTO DE ESGOTO"]
[null,null,null,null,"Grupo",null,"Subgrupo"]
[null,null,null,null,"Custos Operacionais\n(1)",null,"Aluguel"]
[null,null,null,null,null,null,"Atendimento Telefônico"]
[null,null,null,null,null,null,"Autosserviços de Água e Esgoto"]
[null,null,null,null,null,null,"Combustíveis e Lubrificantes"]
[null,null,null,null,null,null,"Comercialização"]
[null,null,null,null,null,null,"Comunicação, Publicidade e Propaganda Legal"]
[null,null,null,null,null,null,"Convênios"]
[null,null,null,null,null,null,"Energia Elétrica"]
[null,null,null,null,null,null,"Indenizações"]
[null,null,null,null,null,null,"Manutenção"]
[null,null,null,null,null,null,"Material de Tratamento"]
[null,null,null,null,null,null,"Outros Materiais"]
[null,null,null,null,null,null,"Pessoal"]
[null,null,null,null,null,null,"Serviços de Terceiros"]
[null,null,null,null,null,null,"Telecomunicação"]
[null,null,null,null,null,null,"Treinamento"]
[null,null,null,null,null,null,"Outros Custos Operacionais"]
[null,null,null,null,null,null,"Total de Custos Operacionais",{"$f":"'Critérios e resultados em R$'!G9","v":1782581243.1800008},{"$f":"'Critérios e resultados em R$'!I9","v":470688616.95000011},{"$f":"'Critérios e resultados em R$'!K9","v":270299943.79000002}]
[null,null,7.51E-2,null,"Tributos e Outras Obrigações\n(2)",null,"PIS/Pasep e Cofins",{"$f":"$C$26*H40","v":217085024.86931407},{"$f":"$C$26*I40","v":103033732.82448506},{"$f":"$C$26*J40","v":49558881.549123049}]
[null,null,3.5931999999999999,null,null,null,"TFAS",{"$f":"IFERROR($C$27*1.2022*H47,\"\")","v":22205358.875266053},{"$f":"IFERROR($C$27*1.2022*I47,\"\")","v":9349771.1474919226},{"$f":"IFERROR($C$27*1.2022*J47,\"\")","v":6107516.4313901914}]
[null,null,null,null,null,null,"Outros Tributos e Taxas",{"$f":"'Critérios e resultados em R$'!G12","v":5028214.96},{"$f":"'Critérios e resultados em R$'!I12","v":1545646.41},{"$f":"'Critérios e resultados em R$'!K12","v":1065684.03}]
[null,null,null,null,null,null,"Total de Tributos e Outras Obrigações",{"$f":"SUM(H26:H28)","v":244318598.70458013},{"$f":"SUM(I26:I28)","v":113929150.38197698},{"$f":"SUM(J26:J28)","v":56732082.010513239}]
[null,null,5.0000000000000001E-3,null,"Programas Especiais (3) ",null,"Proteção de Mananciais",{"$f":"$C$30*H40","v":14453064.238968981},{"$f":"$C$30*I40","v":6859769.162748673},{"$f":"$C$30*J40","v":3299526.0685168477}]
[null,null,null,null,"Custos de Capital\n(4)",null,"Amortização/depreciação",{"$f":"'Base de ativos'!D8","v":361573840.21147132},{"$f":"'Base de ativos'!D9","v":283963552.97632229},{"$f":"'Base de ativos'!D10","v":148645187.62919185}]
[null,null,null,null,null,null,"Tributos sobre o lucro",{"$f":"H60","v":112817723.27813426},{"$f":"I60","v":128851546.46442981},50121171.135420375]
[null,null,7.4399999999999994E-2,null,null,null,"Remuneração da base de ativos",{"$f":"C33*'Base de ativos'!C8","v":371911517.65491396},{"$f":"C33*'Base de ativos'!C9","v":340975367.82020861},{"$f":"C33*'Base de ativos'!C10","v":139492763.03685343}]
[null,null,{"$f":"C33*1.15%","v":8.5559999999999987E-4},null,null,null,"Remuneração da NCG",{"$f":"$C$34*H40","v":2473208.3525723717},{"$f":"$C$34*I40","v":1173843.6991295528},564614.90084460285]
[null,null,null,null,null,null,"Total de Custos de Capital",{"$f":"SUM(H31:H34)","v":848776289.49709189},{"$f":"SUM(I31:I34)","v":754964310.96009028},338823736.7023102]
[null,null,2.35E-2,null,"RI (5)",null,"Receitas Irrecuperáveis",{"$f":"$C$36*H40","v":67929401.923154205},{"$f":"$C$36*I40","v":32240915.064918764},15507772.522029184]
[null,null,null,null,"RR",null,"Receita Requerida = (1) + (2) + (3) + (4) + (5)",{"$f":"H25+H29+H30+H35+H36","v":2958058597.5437961},{"$f":"I25+I29+I30+I35+I36","v":1378682762.5197349},684663061.09336948]
[null,"Para circular:",null,null,"OR",null,"Outras Receitas",{"$f":"'Critérios e resultados em R$'!G20","v":67445749.749999925},{"$f":"'Critérios e resultados em R$'!I20","v":6728929.9699999969},{"$f":"'Critérios e resultados em R$'!K20","v":24757847.389999997}]
[null,{"$f":"SUM(H39:J39)","v":4922471894.0468998},null,null,"RT base",null,"Receita Tarifária necessária = RR - OR",{"$f":"H37-H38","v":2890612847.7937961},{"$f":"I37-I38","v":1371953832.5497348},659905213.7033695]
[null,{"$f":"SUM(H40:J40)","v":4922471894.0468998},null,null,null,null,"Valores para cálculo circular:",2890612847.7937961,1371953832.5497346,659905213.7033695]
[null,{"$f":"soma_colar_para_macro=soma_resultado_para_macro","v":true},null,null,"Contabilidade"]
[null,null,null,null,"% RT"]
[null,null,null,null,"Cálculo específico"]
[]
[null,null,null,null,null,null,"Volume faturado (m³) 12 meses",{"$f":"'Critérios e resultados em R$'!G22","v":595466723.37000036},415607546.37000018,318744409.45000005]
[]
[null,null,null,null,null,null,"Nº de economias para TFAS",5140432.7499999981,2164426.6179866772,1413860.3956566362,{"$f":"I47+J47","v":3578287.0136433132}]
[]
[null,null,null,null,null,null,"Tarifa média (R$/m³)",{"$f":"IFERROR(H39/H45,\"\")","v":4.8543650456814511},{"$f":"IFERROR(I39/I45,\"\")","v":3.3010801765575608},2.0703271779481538]
[null,null,null,null,null,null,null,{"$f":"H49-'Critérios e resultados em R$'!G23","v":-2.7702113945720086E-3},{"$f":"I49-'Critérios e resultados em R$'!I23","v":-5.0832149630890555E-3},{"$f":"J49-'Critérios e resultados em R$'!K23","v":-3.3264514203423801E-3}]
[]
[]
[null,null,null,null,null,null,"Alíquota tributos sobre o lucro",0.34,0.34,0.34]
[null,null,{"$f":"soma_tributos_colar_para_macro=soma_tributos_para_macro","v":true},null,{"$f":"SUM(H54:J54)","v":1942564337.159492},null,"Custos de capital",848776289.49709189,754964310.96009016,338823736.7023102]
[null,null,{"$f":"SUM(H52:J52)","v":0},null,{"$f":"SUM(H35:J35)","v":1942564337.1594925},null,"Depreciação contábil",268760673.54000008,205576961.8299998,114022041.3]
[null,null,null,null,null,null,"Encargos de empréstimos",144032675.54999998,51441862.630000025,31108940.989999991]
[null,null,{"$f":"Soma_colar_JCP=Soma_JCP_para_macro","v":true},null,{"$f":"SUM(H57:J57)","v":219630980.10863891},"a  ","(-) Distribuição de 29,41% em forma de JCP",84918022.203349546,96986698.239132643,37726259.666156746]
[null,null,{"$f":"Soma_colar_JCP=Soma_JCP_para_macro","v":true},null,{"$f":"SUM(H58:J58)","v":49783022.15795815},"b  ","(-) Participação nos Lucros e Resultados ",19248085.032759231,21983651.600870062,8551285.5243288614]
[null,null,null,null,null,null,"(=) Base de cálculo de IRPJ e CSLL",{"$f":"H54-H55-H56-H57-H58","v":331816833.17098308},{"$f":"I54-I55-I56-I57-I58","v":378975136.66008765},147415209.22182462]
[null,null,null,null,null,null,"(-) Tributos sobre o lucro (34% * base de cálculo acima)",{"$f":"IF(H59>0,H59*H53,0)","v":112817723.27813426},128851546.46442981,50121171.135420375]
[null,null,null,null,null,null,"(+) JCP calculado acima",{"$f":"H57","v":84918022.203349546},96986698.239132643,37726259.666156746]
[null,null,null,null,null,null,"(=) Lucro Líquido (Base de cálculo do JCP)",{"$f":"H59-H60+H61","v":303917132.09619838},347110288.43479049,135020297.75256097]
[null,null,null,null,null,null,"(+) PLR",{"$f":"H58","v":19248085.032759231},21983651.600870062,8551285.5243288614]
[null,null,null,null,null,null,"(=) Base de cálculo da PLR",{"$f":"H62+H63","v":323165217.12895763},369093940.03566056,143571583.27688983]
[]
[null,null,null,null,null,null,"Cálculo circular (copia os resultados abaixo e cola como valor nas linhas \"a\" e \"b\" acima)"]
[null,null,null,null,{"$f":"SUM(H67:J67)","v":219630980.10863891},null,"(-) Distribuição de 29,41% em forma de JCP",{"$f":"IF(H62>0,(25%/(1-15%))*95%*H62,0)","v":84918022.203349546},{"$f":"IF(I62>0,(25%/(1-15%))*95%*I62,0)","v":96986698.239132643},37726259.666156746]
[null,null,null,null,{"$f":"SUM(H68:J68)","v":49783022.15795815},null,"(-) Participação nos Lucros e Resultados ",{"$f":"IF(H64>0,25%*25%*(H64-IF(H62>0,5%*H62,0)),0)","v":19248085.032759231},{"$f":"IF(I64>0,25%*25%*(I64-IF(I62>0,5%*I62,0)),0)","v":21983651.600870065},8551285.5243288614]

{"sheet":"Municípios","index":3,"n_rows":581,"n_cols":4,"rows_kept":581,"cut":false,"hidden":false,"merged":[]}
["ARSAE-MG"]
["Esclarecimentos e informações adicionais sobre o método de cálculo das proporções das tarifas de esgoto em relação às tarifas de água, no contexto das propostas apresentadas na Seção 5 da Nota Técnica CRE 13/2020 - Estrutura Tarifária"]
[]
[]
[null,"MUNICÍPIOS INCLUÍDOS NA ANÁLISE"]
[]
[null,"Água","Coleta de esgoto","Tratamento de esgoto"]
[null,"ABADIA DOS DOURADOS","ÁGUAS VERMELHAS","ÁGUAS VERMELHAS"]
[null,"ABAETÉ","ALÉM PARAÍBA","ALFENAS"]
[null,"AÇUCENA","ALFENAS","ALMENARA"]
[null,"ÁGUA BOA","ALMENARA","ALPINÓPOLIS"]
[null,"ÁGUA COMPRIDA","ALPINÓPOLIS","ARAÇUAÍ"]
[null,"ÁGUAS FORMOSAS","ARAÇUAÍ","ARAXÁ"]
[null,"ÁGUAS VERMELHAS","ARAXÁ","ATALÉIA"]
[null,"ALÉM PARAÍBA","ARCEBURGO","BELO HORIZONTE"]
[null,"ALFENAS","ATALÉIA","BETIM"]
[null,"ALFREDO VASCONCELOS","BARBACENA","BOM DESPACHO"]
[null,"ALMENARA","BELO HORIZONTE","BOM REPOUSO"]
[null,"ALPERCATA","BETIM","BORDA DA MATA"]
[null,"ALPINÓPOLIS","BOM DESPACHO","BRASILÂNDIA DE MINAS"]
[null,"ALTEROSA","BOM REPOUSO","BRASÍLIA DE MINAS"]
[null,"ALTO JEQUITIBÁ","BONFIM","BUENO BRANDÃO"]
[null,"ALTO RIO DOCE","BORDA DA MATA","BUENÓPOLIS"]
[null,"ALVARENGA","BOTELHOS","CAMPINA VERDE"]
[null,"ALVINÓPOLIS","BRASILÂNDIA DE MINAS","CAPETINGA"]
[null,"ALVORADA DE MINAS","BRASÍLIA DE MINAS","CAPIM BRANCO"]
[null,"AMPARO DA SERRA","BRUMADINHO","CAPITÃO ENÉAS"]
[null,"ANDRADAS","BUENO BRANDÃO","CARATINGA"]
[null,"ANDRELÂNDIA","BUENÓPOLIS","CARBONITA"]
[null,"ANTÔNIO CARLOS","BURITIS","CARLOS CHAGAS"]
[null,"ANTÔNIO DIAS","CABO VERDE","CARMO DO PARANAÍBA"]
[null,"ANTÔNIO PRADO DE MINAS","CALDAS","CARMO DO RIO CLARO"]
[null,"ARAÇAÍ","CAMANDUCAIA","CARNEIRINHO"]
[null,"ARAÇUAÍ","CAMPANHA","CATUTI"]
[null,"ARAPONGA","CAMPINA VERDE","CAXAMBU"]
[null,"ARAXÁ","CAMPO FLORIDO","CENTRALINA"]
[null,"ARCEBURGO","CAPELINHA","CLARO DOS POÇÕES"]
[null,"ARCOS","CAPETINGA","CLÁUDIO"]
[null,"AREADO","CAPIM BRANCO","CONCEIÇÃO DA BARRA DE MINAS"]
[null,"ARINOS","CAPITÃO ENÉAS","CONCEIÇÃO DO MATO DENTRO"]
[null,"ASTOLFO DUTRA","CARATINGA","CONQUISTA"]
[null,"ATALÉIA","CARBONITA","CONSELHEIRO LAFAIETE"]
[null,"AUGUSTO DE LIMA","CARLOS CHAGAS","CONTAGEM"]
[null,"BAEPENDI","CARMO DA CACHOEIRA","CORAÇÃO DE JESUS"]
[null,"BALDIM","CARMO DO PARANAÍBA","CORDISBURGO"]
[null,"BAMBUÍ","CARMO DO RIO CLARO","CORINTO"]
[null,"BARÃO DE COCAIS","CARNEIRINHO","CORONEL MURTA"]
[null,"BARÃO DE MONTE ALTO","CARVALHOS","CRISTÁLIA"]
[null,"BARBACENA","CATAGUASES","CURVELO"]
[null,"BARRA LONGA","CATUTI","DESTERRO DO MELO"]
[null,"BARROSO","CAXAMBU","DIVINÓPOLIS"]
[null,"BELA VISTA DE MINAS","CENTRALINA","DIVISÓPOLIS"]
[null,"BELMIRO BRAGA","CLARO DOS POÇÕES","DORES DO INDAIÁ"]
[null,"BELO HORIZONTE","CLÁUDIO","ESMERALDAS"]
[null,"BELO VALE","CONCEIÇÃO DA BARRA DE MINAS","EXTREMA"]
[null,"BERIZAL","CONCEIÇÃO DO MATO DENTRO","FRANCISCO DUMONT"]
[null,"BETIM","CONCEIÇÃO DO PARÁ","FRUTAL"]
[null,"BICAS","CONGONHAL","FUNILÂNDIA"]
[null,"BIQUINHAS","CONGONHAS","GLAUCILÂNDIA"]
[null,"BOM DESPACHO","CONQUISTA","GONÇALVES"]
[null,"BOM JARDIM DE MINAS","CONSELHEIRO LAFAIETE","GRÃO MOGOL"]
[null,"BOM JESUS DA PENHA","CONTAGEM","GUARDA-MOR"]
[null,"BOM JESUS DO AMPARO","CORAÇÃO DE JESUS","IBIAÍ"]
[null,"BOM JESUS DO GALHO","CORDISBURGO","IBIRITÉ"]
[null,"BOM REPOUSO","CORINTO","ICARAÍ DE MINAS"]
[null,"BONFIM","CORONEL FABRICIANO","IPATINGA"]
[null,"BONFINÓPOLIS DE MINAS","CORONEL MURTA","ITACARAMBI"]
[null,"BONITO DE MINAS","CRISTÁLIA","ITAJUBÁ"]
[null,"BORDA DA MATA","CRUZÍLIA","ITAOBIM"]
[null,"BOTELHOS","CURVELO","ITAPECERICA"]
[null,"BRASILÂNDIA DE MINAS","DELFINOPÓLIS","ITURAMA"]
[null,"BRASÍLIA DE MINAS","DESTERRO DO MELO","JABOTICATUBAS"]
[null,"BRASÓPOLIS","DIAMANTINA","JAÍBA"]
[null,"BRAÚNAS","DIVINO","JANAÚBA"]
[null,"BRUMADINHO","DIVINÓPOLIS","JANUÁRIA"]
[null,"BUENO BRANDÃO","DIVISÓPOLIS","JEQUITINHONHA"]
[null,"BUENÓPOLIS","DORES DO INDAIÁ","JOAÍMA"]
[null,"BUGRE","ENGENHEIRO NAVARRO","JOÃO PINHEIRO"]
[null,"BURITIS","ESMERALDAS","JURAMENTO"]
[null,"CABO VERDE","ESTRELA DO INDAIÁ","JUVENÍLIA"]
[null,"CACHOEIRA DE MINAS","ESTRELA DO SUL","LAGOA DOS PATOS"]
[null,"CAETANÓPOLIS","EXTREMA","LAGOA SANTA"]
[null,"CAIANA","FAMA","LAVRAS"]
[null,"CAJURI","FRANCISCO DUMONT","LIMEIRA DO OESTE"]
[null,"CALDAS","FRONTEIRA","LONTRA"]
[null,"CAMACHO","FRUTAL","MANGA"]
[null,"CAMANDUCAIA","FUNILÂNDIA","MARTINHO CAMPOS"]
[null,"CAMPANÁRIO","GLAUCILÂNDIA","MATA VERDE"]
[null,"CAMPANHA","GONÇALVES","MATEUS LEME"]
[null,"CAMPESTRE","GRÃO MOGOL","MATOZINHOS"]
[null,"CAMPINA VERDE","GUARACIABA","MINAS NOVAS"]
[null,"CAMPO AZUL","GUARDA-MOR","MIRABELA"]
[null,"CAMPO FLORIDO","GUAXUPÉ","MONTALVÂNIA"]
[null,"CAMPOS ALTOS","GUIMARÂNIA","MONTE AZUL"]
[null,"CAMPOS GERAIS","IBIAÍ","MONTES CLAROS"]
[null,"CANA VERDE","IBIRACI","MORADA NOVA DE MINAS"]
[null,"CANAÃ","IBIRITÉ","NANUQUE"]
[null,"CANÁPOLIS","ICARAÍ DE MINAS","NOVA LIMA"]
[null,"CANDEIAS","IGARAPÉ","NOVA PORTEIRINHA"]
[null,"CANTAGALO","INDAIABIRA","NOVA SERRANA"]
[null,"CAPARAÓ","INHAPIM","OURO BRANCO"]
[null,"CAPELA NOVA","IPATINGA","PARACATU"]
[null,"CAPELINHA","IPUIÚNA","PATOS DE MINAS"]
[null,"CAPETINGA","ITABIRINHA","PEDRALVA"]
[null,"CAPIM BRANCO","ITACARAMBI","PEDRAS DE MARIA DA CRUZ"]
[null,"CAPINÓPOLIS","ITAJUBÁ","PEDRO LEOPOLDO"]
[null,"CAPITÃO ENÉAS","ITAMARANDIBA","PORTEIRINHA"]
[null,"CAPITÓLIO","ITAOBIM","POUSO ALEGRE"]
[null,"CAPUTIRA","ITAPECERICA","PRADOS"]
[null,"CARANDAÍ","ITAPEVA","RESENDE COSTA"]
[null,"CARATINGA","ITURAMA","RESPLENDOR"]
[null,"CARBONITA","JABOTICATUBAS","RIACHO DOS MACHADOS"]
[null,"CAREAÇU","JACINTO","RIBEIRÃO DAS NEVES"]
[null,"CARLOS CHAGAS","JAÍBA","RIO PARDO DE MINAS"]
[null,"CARMO DA CACHOEIRA","JANAÚBA","SALINAS"]
[null,"CARMO DO PARANAÍBA","JANUÁRIA","SANTA LUZIA"]
[null,"CARMO DO RIO CLARO","JEQUITINHONHA","SANTA RITA DO SAPUCAÍ"]
[null,"CARNEIRINHO","JOAÍMA","SANTANA DA VARGEM"]
[null,"CARVALHÓPOLIS","JOÃO PINHEIRO","SANTO ANTÔNIO DO MONTE"]
[null,"CARVALHOS","JUATUBA","SANTO ANTÔNIO DO RETIRO"]
[null,"CASCALHO RICO","JURAMENTO","SÃO FRANCISCO"]
[null,"CÁSSIA","JUVENÍLIA","SÃO GOTARDO"]
[null,"CATAGUASES","LAGOA DOS PATOS","SÃO JOÃO DA PONTE"]
[null,"CATUTI","LAGOA SANTA","SÃO JOÃO DEL REI"]
[null,"CAXAMBU","LAVRAS","SÃO JOÃO DO PARAÍSO"]
[null,"CEDRO DO ABAETÉ","LEANDRO FERREIRA","SÃO JOSÉ DA LAPA"]
[null,"CENTRALINA","LIMEIRA DO OESTE","SÃO ROQUE DE MINAS"]
[null,"CHÁCARA","LONTRA","SÃO SEBASTIÃO DO PARAÍSO"]
[null,"CHAPADA GAÚCHA","MALACACHETA","SERRA DOS AIMORÉS"]
[null,"CIPOTÂNEA","MANGA","SERRO"]
[null,"CLARO DOS POÇÕES","MARTINHO CAMPOS","TAIOBEIRAS"]
[null,"CLÁUDIO","MATA VERDE","TEÓFILO OTONI"]
[null,"COIMBRA","MATEUS LEME","TRÊS CORAÇÕES"]
[null,"COLUNA","MATOZINHOS","Três Marias"]
[null,"COMENDADOR GOMES","MEDINA","TURMALINA"]
[null,"CONCEIÇÃO DA APARECIDA","MINAS NOVAS","UNIÃO DE MINAS"]
[null,"CONCEIÇÃO DA BARRA DE MINAS","MIRABELA","VARGINHA"]
[null,"CONCEIÇÃO DO MATO DENTRO","MONTALVÂNIA","VÁRZEA DA PALMA"]
[null,"CONCEIÇÃO DO PARÁ","MONTE AZUL","VARZELÂNDIA"]
[null,"CONCEIÇÃO DO RIO VERDE","MONTES CLAROS","VAZANTE"]
[null,"CONCEIÇÃO DOS OUROS","MORADA NOVA DE MINAS","VESPASIANO"]
[null,"CÔNEGO MARINHO","MUTUM"]
[null,"CONGONHAL","NANUQUE"]
[null,"CONGONHAS","NATÉRCIA"]
[null,"CONQUISTA","NOVA LIMA"]
[null,"CONSELHEIRO LAFAIETE","NOVA MÓDICA"]
[null,"CONTAGEM","NOVA PORTEIRINHA"]
[null,"CORAÇÃO DE JESUS","NOVA SERRANA"]
[null,"CORDISBURGO","NOVO CRUZEIRO"]
[null,"CORDISLÂNDIA","OURO BRANCO"]
[null,"CORINTO","OURO VERDE DE MINAS"]
[null,"COROACI","PARACATU"]
[null,"COROMANDEL","PASSABÉM"]
[null,"CORONEL FABRICIANO","PATOS DE MINAS"]
[null,"CORONEL MURTA","PEDRALVA"]
[null,"CORONEL XAVIER CHAVES","PEDRAS DE MARIA DA CRUZ"]
[null,"CÓRREGO DANTA","PEDRO LEOPOLDO"]
[null,"CÓRREGO NOVO","PERDÕES"]
[null,"CRISTAIS","PIRAPETINGA"]
[null,"CRISTÁLIA","PORTEIRINHA"]
[null,"CRISTIANO OTONI","POTÉ"]
[null,"CRUCILÂNDIA","POUSO ALEGRE"]
[null,"CRUZEIRO DA FORTALEZA","PRADOS"]
[null,"CRUZÍLIA","PRESIDENTE BERNARDES"]
[null,"CUPARAQUE","PRUDENTE DE MORAIS"]
[null,"CURRAL DE DENTRO","RAPOSOS"]
[null,"CURVELO","RESENDE COSTA"]
[null,"DATAS","RESPLENDOR"]
[null,"DELFINOPÓLIS","RIACHO DOS MACHADOS"]
[null,"DESTERRO DO MELO","RIBEIRÃO DAS NEVES"]
[null,"DIAMANTINA","RIO CASCA"]
[null,"DIONÍSIO","RIO PARDO DE MINAS"]
[null,"DIVINÉSIA","SABARÁ"]
[null,"DIVINO","SALINAS"]
[null,"DIVINO DAS LARANJEIRAS","SANTA LUZIA"]
[null,"DIVINÓPOLIS","SANTA MARIA DO SUAÇUÍ"]
[null,"DIVISA ALEGRE","SANTA RITA DE CALDAS"]
[null,"DIVISA NOVA","SANTA RITA DO SAPUCAÍ"]
[null,"DIVISÓPOLIS","SANTANA DA VARGEM"]
[null,"DOM CAVATI","SANTANA DO PARAÍSO"]
[null,"DOM JOAQUIM","SANTO ANTÔNIO DO MONTE"]
[null,"DOM SILVÉRIO","SANTO ANTÔNIO DO RETIRO"]
[null,"DONA EUSÉBIA","SANTOS DUMONT"]
[null,"DORES DO INDAIÁ","SÃO FRANCISCO"]
[null,"DORES DO TURVO","SÃO GONÇALO DO ABAETÉ"]
[null,"DURANDÉ","SÃO GOTARDO"]
[null,"ENGENHEIRO CALDAS","SÃO JOÃO DA PONTE"]
[null,"ENGENHEIRO NAVARRO","SÃO JOÃO DEL REI"]
[null,"ENTRE FOLHAS","SÃO JOÃO DO MANHUAÇU"]
[null,"ENTRE RIOS DE MINAS","SÃO JOÃO DO PARAÍSO"]
[null,"ERVÁLIA","SÃO JOÃO NEPOMUCENO"]
[null,"ESMERALDAS","SÃO JOAQUIM DE BICAS"]
[null,"ESPERA FELIZ","SÃO JOSÉ DA LAPA"]
[null,"ESPINOSA","SÃO JOSÉ DO JACURI"]
[null,"ESTIVA","SÃO ROMÃO"]
[null,"ESTRELA DALVA","SÃO ROQUE DE MINAS"]
[null,"ESTRELA DO INDAIÁ","São Sebastião do Maranhão"]
[null,"ESTRELA DO SUL","SÃO SEBASTIÃO DO PARAÍSO"]
[null,"EUGENÓPOLIS","SÃO TIAGO"]
[null,"EXTREMA","SAPUCAÍ-MIRIM"]
[null,"FAMA","SARZEDO"]
[null,"FARIA LEMOS","SERRA AZUL DE MINAS"]
[null,"FELIXLÂNDIA","SERRA DA SAUDADE"]
[null,"FERNANDES TOURINHO","SERRA DOS AIMORÉS"]
[null,"FERROS","SERRO"]
[null,"FLORESTAL","TAIOBEIRAS"]
[null,"FORMOSO","TAQUARAÇU DE MINAS"]
[null,"FORTALEZA DE MINAS","TEÓFILO OTONI"]
[null,"FRANCISCO DUMONT","TIMÓTEO"]
[null,"FRANCISCÓPOLIS","TIRADENTES"]
[null,"FREI INOCÊNCIO","TRÊS CORAÇÕES"]
[null,"FRONTEIRA","Três Marias"]
[null,"FRUTAL","TURMALINA"]
[null,"FUNILÂNDIA","UBÁ"]
[null,"GLAUCILÂNDIA","UNIÃO DE MINAS"]
[null,"GOIANÁ","VARGINHA"]
[null,"GONÇALVES","VÁRZEA DA PALMA"]
[null,"GOUVEIA","VARZELÂNDIA"]
[null,"GRÃO MOGOL","VAZANTE"]
[null,"GRUPIARA","VESPASIANO"]
[null,"GUARACIABA","VISCONDE DO RIO BRANCO"]
[null,"GUARANÉSIA"]
[null,"GUARARÁ"]
[null,"GUARDA-MOR"]
[null,"GUAXUPÉ"]
[null,"GUIDOVAL"]
[null,"GUIMARÂNIA"]
[null,"GUIRICEMA"]
[null,"GURINHATÃ"]
[null,"HELIODORA"]
[null,"IAPU"]
[null,"IBERTIOGA"]
[null,"IBIAÍ"]
[null,"IBIRACATU"]
[null,"IBIRACI"]
[null,"IBIRITÉ"]
[null,"IBITIÚRA DE MINAS"]
[null,"ICARAÍ DE MINAS"]
[null,"IGARAPÉ"]
[null,"IGARATINGA"]
[null,"ILICÍNEA"]
[null,"IMBÉ DE MINAS"]
[null,"INCONFIDENTES"]
[null,"INDAIABIRA"]
[null,"INDIANÓPOLIS"]
[null,"INGAÍ"]
[null,"INHAPIM"]
[null,"INIMUTABA"]
[null,"IPABA"]
[null,"IPATINGA"]
[null,"IPUIÚNA"]
[null,"IRAÍ DE MINAS"]
[null,"ITABIRINHA"]
[null,"ITACARAMBI"]
[null,"ITAJUBÁ"]
[null,"ITAMARANDIBA"]
[null,"ITAMARATI DE MINAS"]
[null,"ITAMOGI"]
[null,"ITAMONTE"]
[null,"ITANHOMI"]
[null,"ITAOBIM"]
[null,"ITAPAGIPE"]
[null,"ITAPECERICA"]
[null,"ITAPEVA"]
[null,"ITATIAIUÇU"]
[null,"ITAÚ DE MINAS"]
[null,"ITAVERAVA"]
[null,"ITUETA"]
[null,"ITUMIRIM"]
[null,"ITURAMA"]
[null,"ITUTINGA"]
[null,"JABOTICATUBAS"]
[null,"JACINTO"]
[null,"JACUÍ"]
[null,"JAÍBA"]
[null,"JANAÚBA"]
[null,"JANUÁRIA"]
[null,"JAPONVAR"]
[null,"JEQUITAÍ"]
[null,"JEQUITIBÁ"]
[null,"JEQUITINHONHA"]
[null,"JOAÍMA"]
[null,"JOÃO PINHEIRO"]
[null,"JOAQUIM FELÍCIO"]
[null,"JORDÂNIA"]
[null,"JOSÉ RAYDAN"]
[null,"JUATUBA"]
[null,"JURAMENTO"]
[null,"JURUAIA"]
[null,"JUVENÍLIA"]
[null,"LAGAMAR"]
[null,"LAGOA DOS PATOS"]
[null,"LAGOA DOURADA"]
[null,"LAGOA GRANDE"]
[null,"LAGOA SANTA"]
[null,"LARANJAL"]
[null,"LAVRAS"]
[null,"LEANDRO FERREIRA"]
[null,"LEOPOLDINA"]
[null,"LIBERDADE"]
[null,"LIMEIRA DO OESTE"]
[null,"LONTRA"]
[null,"LUISLÂNDIA"]
[null,"LUZ"]
[null,"MACHACALIS"]
[null,"MADRE DE DEUS DE MINAS"]
[null,"MALACACHETA"]
[null,"MANGA"]
[null,"MAR DE ESPANHA"]
[null,"MARAVILHAS"]
[null,"MARIA DA FÉ"]
[null,"MARILAC"]
[null,"MÁRIO CAMPOS"]
[null,"MARIPÁ DE MINAS"]
[null,"MARTINHO CAMPOS"]
[null,"MARTINS SOARES"]
[null,"MATA VERDE"]
[null,"MATERLÂNDIA"]
[null,"MATEUS LEME"]
[null,"MATHIAS LOBATO"]
[null,"MATIAS BARBOSA"]
[null,"MATIAS CARDOSO"]
[null,"MATIPÓ"]
[null,"MATO VERDE"]
[null,"MATOZINHOS"]
[null,"MATUTINA"]
[null,"MEDEIROS"]
[null,"MEDINA"]
[null,"MERCÊS"]
[null,"MINAS NOVAS"]
[null,"MINDURI"]
[null,"MIRABELA"]
[null,"MIRADOURO"]
[null,"MIRAÍ"]
[null,"MIRAVÂNIA"]
[null,"MOEDA"]
[null,"MONJOLOS"]
[null,"MONSENHOR PAULO"]
[null,"MONTALVÂNIA"]
[null,"MONTE AZUL"]
[null,"MONTE BELO"]
[null,"MONTE SANTO DE MINAS"]
[null,"MONTE SIÃO"]
[null,"MONTES CLAROS"]
[null,"MONTEZUMA"]
[null,"MORADA NOVA DE MINAS"]
[null,"MORRO DA GARÇA"]
[null,"MUNHOZ"]
[null,"MUTUM"]
[null,"MUZAMBINHO"]
[null,"NACIP RAYDAN"]
[null,"NANUQUE"]
[null,"NAQUE"]
[null,"NATÉRCIA"]
[null,"NAZARENO"]
[null,"NINHEIRA"]
[null,"NOVA LIMA"]
[null,"NOVA MÓDICA"]
[null,"NOVA PORTEIRINHA"]
[null,"NOVA RESENDE"]
[null,"NOVA SERRANA"]
[null,"NOVA UNIÃO"]
[null,"NOVO CRUZEIRO"]
[null,"OLIVEIRA FORTES"]
[null,"ONÇA DE PITANGUI"]
[null,"ORIZÂNIA"]
[null,"OURO BRANCO"]
[null,"OURO VERDE DE MINAS"]
[null,"PADRE PARAÍSO"]
[null,"PAI PEDRO"]
[null,"PAINEIRAS"]
[null,"PALMA"]
[null,"PALMÓPOLIS"]
[null,"PARACATU"]
[null,"PARAOPEBA"]
[null,"PASSA TEMPO"]
[null,"PASSABÉM"]
[null,"PATIS"]
[null,"PATOS DE MINAS"]
[null,"PATROCÍNIO DO MURIAÉ"]
[null,"PAULA CÂNDIDO"]
[null,"PAULISTAS"]
[null,"PEÇANHA"]
[null,"PEDRA DO ANTA"]
[null,"PEDRA DO INDAIÁ"]
[null,"PEDRALVA"]
[null,"PEDRAS DE MARIA DA CRUZ"]
[null,"PEDRINÓPOLIS"]
[null,"PEDRO LEOPOLDO"]
[null,"PEQUERI"]
[null,"PERDIGÃO"]
[null,"PERDIZES"]
[null,"PERDÕES"]
[null,"PERIQUITO"]
[null,"PIEDADE DE CARATINGA"]
[null,"PIEDADE DE PONTE NOVA"]
[null,"PIEDADE DO RIO GRANDE"]
[null,"PIEDADE DOS GERAIS"]
[null,"PINGO-D'ÁGUA"]
[null,"PINTÓPOLIS"]
[null,"PIRAJUBA"]
[null,"PIRANGA"]
[null,"PIRANGUÇU"]
[null,"PIRANGUINHO"]
[null,"PIRAPETINGA"]
[null,"PIRAÚBA"]
[null,"PITANGUI"]
[null,"PLANURA"]
[null,"POÇO FUNDO"]
[null,"POMPÉU"]
[null,"PONTO CHIQUE"]
[null,"PORTEIRINHA"]
[null,"PORTO FIRME"]
[null,"POTÉ"]
[null,"POUSO ALEGRE"]
[null,"PRADOS"]
[null,"PRATA"]
[null,"PRESIDENTE BERNARDES"]
[null,"PRESIDENTE JUSCELINO"]
[null,"PRESIDENTE OLEGÁRIO"]
[null,"PRUDENTE DE MORAIS"]
[null,"QUARTEL GERAL"]
[null,"RAPOSOS"]
[null,"RESENDE COSTA"]
[null,"RESPLENDOR"]
[null,"RESSAQUINHA"]
[null,"RIACHINHO"]
[null,"RIACHO DOS MACHADOS"]
[null,"RIBEIRÃO DAS NEVES"]
[null,"RIBEIRÃO VERMELHO"]
[null,"RIO CASCA"]
[null,"RIO ESPERA"]
[null,"RIO MANSO"]
[null,"RIO NOVO"]
[null,"RIO PARANAÍBA"]
[null,"RIO PARDO DE MINAS"]
[null,"RIO PIRACICABA"]
[null,"RIO POMBA"]
[null,"RIO VERMELHO"]
[null,"RITÁPOLIS"]
[null,"RODEIRO"]
[null,"ROSÁRIO DA LIMEIRA"]
[null,"RUBIM"]
[null,"SABARÁ"]
[null,"SALINAS"]
[null,"SALTO DA DIVISA"]
[null,"SANTA BÁRBARA"]
[null,"SANTA BÁRBARA DO LESTE"]
[null,"SANTA BÁRBARA DO TUGÚRIO"]
[null,"SANTA CRUZ DO ESCALVADO"]
[null,"SANTA EFIGÊNIA DE MINAS"]
[null,"SANTA FÉ DE MINAS"]
[null,"SANTA JULIANA"]
[null,"SANTA LUZIA"]
[null,"SANTA MARGARIDA"]
[null,"SANTA MARIA DE ITABIRA"]
[null,"SANTA MARIA DO SUAÇUÍ"]
[null,"SANTA RITA DE CALDAS"]
[null,"SANTA RITA DE IBITIPOCA"]
[null,"SANTA RITA DE MINAS"]
[null,"SANTA RITA DO ITUETO"]
[null,"SANTA RITA DO SAPUCAÍ"]
[null,"SANTA ROSA DA SERRA"]
[null,"SANTA VITÓRIA"]
[null,"SANTANA DA VARGEM"]
[null,"SANTANA DE CATAGUASES"]
[null,"SANTANA DE PIRAPAMA"]
[null,"SANTANA DO DESERTO"]
[null,"SANTANA DO JACARÉ"]
[null,"SANTANA DO MANHUAÇU"]
[null,"SANTANA DO PARAÍSO"]
[null,"SANTO ANTÔNIO DO AVENTUREIRO"]
[null,"SANTO ANTÔNIO DO GRAMA"]
[null,"SANTO ANTÔNIO DO ITAMBÉ"]
[null,"SANTO ANTÔNIO DO JACINTO"]
[null,"SANTO ANTÔNIO DO MONTE"]
[null,"SANTO ANTÔNIO DO RETIRO"]
[null,"SANTO HIPÓLITO"]
[null,"SANTOS DUMONT"]
[null,"SÃO BENTO ABADE"]
[null,"SÃO BRÁS DO SUAÇUÍ"]
[null,"SÃO DOMINGOS DAS DORES"]
[null,"SÃO DOMINGOS DO PRATA"]
[null,"SÃO FRANCISCO"]
[null,"SÃO FRANCISCO DE PAULA"]
[null,"SÃO FRANCISCO DE SALES"]
[null,"SÃO GERALDO"]
[null,"SÃO GONÇALO DO ABAETÉ"]
[null,"SÃO GONÇALO DO PARÁ"]
[null,"SÃO GONÇALO DO SAPUCAÍ"]
[null,"SÃO GOTARDO"]
[null,"SÃO JOÃO DA PONTE"]
[null,"SÃO JOÃO DAS MISSÕES"]
[null,"SÃO JOÃO DEL REI"]
[null,"SÃO JOÃO DO MANHUAÇU"]
[null,"SÃO JOÃO DO ORIENTE"]
[null,"SÃO JOÃO DO PARAÍSO"]
[null,"SÃO JOÃO EVANGELISTA"]
[null,"SÃO JOÃO NEPOMUCENO"]
[null,"SÃO JOAQUIM DE BICAS"]
[null,"SÃO JOSÉ DA BARRA"]
[null,"SÃO JOSÉ DA LAPA"]
[null,"SÃO JOSÉ DA SAFIRA"]
[null,"SÃO JOSÉ DO ALEGRE"]
[null,"SÃO JOSÉ DO GOIABAL"]
[null,"SÃO JOSÉ DO JACURI"]
[null,"SÃO JOSÉ DO MANTIMENTO"]
[null,"SÃO MIGUEL DO ANTA"]
[null,"SÃO PEDRO DA UNIÃO"]
[null,"SÃO PEDRO DO SUAÇUÍ"]
[null,"SÃO PEDRO DOS FERROS"]
[null,"SÃO ROMÃO"]
[null,"SÃO ROQUE DE MINAS"]
[null,"SÃO SEBASTIÃO DA VARGEM ALEGRE"]
[null,"SÃO SEBASTIÃO DO ANTA"]
[null,"São Sebastião do Maranhão"]
[null,"SÃO SEBASTIÃO DO OESTE"]
[null,"SÃO SEBASTIÃO DO PARAÍSO"]
[null,"SÃO THOMÉ DAS LETRAS"]
[null,"SÃO TIAGO"]
[null,"SÃO TOMÁS DE AQUINO"]
[null,"SÃO VICENTE DE MINAS"]
[null,"SAPUCAÍ-MIRIM"]
[null,"SARDOÁ"]
[null,"SARZEDO"]
[null,"SENADOR AMARAL"]
[null,"SENADOR MODESTINO GONÇALVES"]
[null,"SENHORA DO PORTO"]
[null,"SERICITA"]
[null,"SERRA AZUL DE MINAS"]
[null,"SERRA DA SAUDADE"]
[null,"SERRA DO CIPÓ"]
[null,"SERRA DO SALITRE"]
[null,"SERRA DOS AIMORÉS"]
[null,"SERRANIA"]
[null,"SERRANÓPOLIS DE MINAS"]
[null,"SERRO"]
[null,"SILVEIRÂNIA"]
[null,"SIMONÉSIA"]
[null,"SOBRÁLIA"]
[null,"TABULEIRO"]
[null,"TAIOBEIRAS"]
[null,"TAPIRA"]
[null,"TAPIRAÍ"]
[null,"TAQUARAÇU DE MINAS"]
[null,"TARUMIRIM"]
[null,"TEIXEIRAS"]
[null,"TEÓFILO OTONI"]
[null,"TIMÓTEO"]
[null,"TIRADENTES"]
[null,"TIROS"]
[null,"TOLEDO"]
[null,"TRÊS CORAÇÕES"]
[null,"Três Marias"]
[null,"TUMIRITINGA"]
[null,"TURMALINA"]
[null,"TURVOLÂNDIA"]
[null,"UBÁ"]
[null,"UBAÍ"]
[null,"UBAPORANGA"]
[null,"UNIÃO DE MINAS"]
[null,"URUCÂNIA"]
[null,"URUCUIA"]
[null,"VARGEM ALEGRE"]
[null,"VARGEM BONITA"]
[null,"VARGEM GRANDE DO RIO PARDO"]
[null,"VARGINHA"]
[null,"VARJÃO DE MINAS"]
[null,"VÁRZEA DA PALMA"]
[null,"VARZELÂNDIA"]
[null,"VAZANTE"]
[null,"VERDELÂNDIA"]
[null,"VERÍSSIMO"]
[null,"VESPASIANO"]
[null,"VIEIRAS"]
[null,"VIRGEM DA LAPA"]
[null,"VIRGINÓPOLIS"]
[null,"VIRGOLÂNDIA"]
[null,"VISCONDE DO RIO BRANCO"]
[null,"VOLTA GRANDE"]
[null,"WENCESLAU BRAZ"]

{"sheet":"Base de ativos","index":4,"n_rows":12,"n_cols":4,"rows_kept":12,"cut":false,"hidden":false,"merged":[[10,1,10,3]]}
["ARSAE-MG"]
["Esclarecimentos e informações adicionais sobre o método de cálculo das proporções das tarifas de esgoto em relação às tarifas de água, no contexto das propostas apresentadas na Seção 5 da Nota Técnica CRE 13/2020 - Estrutura Tarifária"]
[]
[]
[null,"Valor residual e depreciação da base de ativos (BRE + BRA) - Base: Retrato de jun/19"]
[]
[null,null,"Valor residual ","Depreciação próximos 12 meses"]
[null,"Água",4998810721.1681986,361573840.21147132]
[null,"Coleta de esgoto",4583002255.6479654,283963552.97632229]
[null,"Tratamento de esgoto",1874902728.9899657,148645187.62919185]
[null," * apenas municípios listados na aba \"Municípios\". Os ativos alocados para a \"sede\" foram rateados entre todos os municípios por número de economias atendidas com cada serviço. Os ativos dos sistemas compartilhados foram rateados a partir dos critérios ou proporções informados pela Copasa (Sistemas Onça, Arrudas e Ressaca/Sarandi com base no volume EDT dos municípios BH e Contagem, e demais sistemas rateados entre os municípios abrangidos conforme proporções informadas pela Copasa em abril/2019)"]
[null," ** por simplificação, foi dado tratamento igual aos ativos essenciais e acessórios."]